Workbook

Sheet Tech (hidden)
A1: LT
A2: EN

Sheet Content
B2: LT | C2: ◄ | D2: Switch to English | F2: ◄ | G2: Rodyti lietuviškai
C4: FISKALINĖS DRAUSMĖS TAISYKLIŲ LAIKYMOSI SKAIČIUOKLĖ | G4: SPREADSHEET OF THE FULFILMENT OF FISCAL DISCIPLINE RULES
C6: Versija 2.0 2017-11-15 | G6: Version 2.0 2017-11
C8: APRAŠYMAS | G8: DESCRIPTION
D10: Fiskalinės sutarties įgyvendinimo konstituciniame įstatyme Nr. XII-1289 (toliau − KĮ) nustatytų fiskalinės drausmės taisyklių skaičiuoklė skirta skaidriai parodyti fiskalinės drausmės taisykles, pagal kurias priimami sprendimai. 1 dalis pateikia skaičiavimams reikalingų duomenų įvestis ir nurodo šių duomenų šaltinius. 2 dalyje nagrinėjamos trys taisyklių grupės: perteklinio valdžios sektoriaus (toliau − VS) taisyklė; VS išlaidų augimą ribojimo taisyklė ir VS priskiriamų biudžetų taisyklės. | G10: Constitutional Law on the Implementation of the Fiscal Treaty Nr. XII-1289 (hereinafter − CL) defines fiscal discipline rules. The aim of this spreadsheet is to show the fiscal discipline rules, which are used for making decisions in a transparent way. Part 1 provides required input data with their appropriate sources. In part 2 three groups of the fiscal rules are validated: general government (hereinafter − GG) surplus rule; GG sector expenditure growth limiting rule and rules for the budgets attributable to GG.
C12: SUVESTINĖ | G12: SUMMARY
D14: 1 lentelė. Fiskalinės drausmės taisyklių laikymosi suvestinė | G14: Table 1. Summary of the fulfilment of the fiscal discipline rules
C16: 1. DUOMENYS | G16: 1 . DATA
D18: 2 lentelė. Makroekonominiai ir ciklo rodikliai | G18: Table 2. Macroeconomic and cyclical indicators
D19: 3 lentelė. VS fiskaliniai rodikliai | G19: Table 3. GG fiscal indicators
C21: 2. FISKALINĖS TAISYKLĖS | G21: 2. FISCAL RULES
D23: 4 lentelė. Perteklinio VS taisyklė | G23: Table 4. Surplus GG rule
D24: 5 lentelė. VS išlaidų augimo ribojimo taisyklė | G24: Table 5. GG expenditure growth limiting rule
D25: 6 lentelė. VS priskiriamų biudžetų taisyklė | G25: Table 6. Rules for the budgets attributable to GG sector
C27: NUORODOS | G27: REFERENCES
C29: KĮ | D29: Lietuvos Respublikos fiskalinės sutarties įgyvendinimo konstitucinis įstatymas | F29: CL | G29: Republic of Lithuania Constitutional Law on the Implementation of the Fiscal Treaty
C30: FDĮ | D30: Lietuvos Respublikos fiskalinės drausmės įstatymas | F30: FDL | G30: Republic of Lithuania Fiscal Discipline Law

Sheet 1. Summary
B1: ↖ atgal į turinį | E1: ↖ back to content
A2: =Kalba -> LT
B3: 1 lentelė. Fiskalinės drausmės taisyklių laikymosi suvestinė 2017 m. | E3: Table 1. Summary of the fulfilment of the fiscal discipline rules in year 2017
B4: Taisyklė | E4: Rule
B5: Institucija, kurios projekcijų pagrindu atliekama analizė | C5: FM | D5: IFI | E5: Institution, projections of which are used for the analysis | F5: MoF | G5: IFI
B6: Perteklinio VS taisyklė | E6: Surplus GG sector rule
B7: Ar patenkinta bent viena perteklinio VS taisyklės sąlygų? | C7: ='4. SurplusGG'!E14 -> Taip | D7: ='4. SurplusGG'!F14 -> Ne | E7: Is at least one condition of the surplus GG rule satisfied? | F7: ='4. SurplusGG'!J14 -> Yes | G7: ='4. SurplusGG'!K14 -> No
C8: ='4. SurplusGG'!E15 -> Tenkinama S2 sąlyga | D8: ='4. SurplusGG'!F15 -> Netenkinama nei viena iš sąlygų | F8: ='4. SurplusGG'!J15 -> Condition C2 is valid | G8: ='4. SurplusGG'!K15 -> None of the conditions is valid
B9: Ar t metai yra išskirtinių aplinkybių metai? | C9: Ne | E9: Is year t a year of exceptional circumstances? | F9: =IF(C9="NE","No","Yes") -> No
B10: VS išlaidų augimo ribojimo taisyklė | E10: GG expenditure growth limiting rule
B11: Ar susidaro bent viena aplinkybė, leidžianti netaikyti VS išlaidų augimo ribojimo taisyklės? | C11: ='5. GGexpenditure'!F19 -> Taip | D11: ='5. GGexpenditure'!G19 -> Ne | E11: Is at least one escape clause, which allows switching off GG expenditure growth limiting rule, valid? | F11: ='5. GGexpenditure'!L19 -> Yes | G11: ='5. GGexpenditure'!M19 -> No
C12: ='5. GGexpenditure'!F20 -> Susidaro A2 aplinkybė | D12: ='5. GGexpenditure'!G20 -> Išimčių nėra | F12: ='5. GGexpenditure'!L20 -> Escape clause E2 emerges | G12: ='5. GGexpenditure'!M20 -> There is no escape clauses
B13: Ar taikoma VS išlaidų augimą ribojimo taisyklė? | C13: =IF(C11="taip","Netaikoma,","Taikoma") -> Netaikoma, | D13: =IF(D11="taip","Netaikoma,","Taikoma") -> Taikoma | E13: Is GG expenditure growth limiting rule applied? | F13: =IF(F11="yes","Not applied,","Applied") -> Not applied, | G13: =IF(G11="yes","Not applied,","Applied") -> Applied
C14: ='5. GGexpenditure'!F26 -> nes susidarė viena iš KĮ numatytų netaikymo aplinkybių | D14: ='5. GGexpenditure'!G26 -> 1,079 > 1,022 | F14: ='5. GGexpenditure'!L26 -> since one of CL escape clauses emerged | G14: ='5. GGexpenditure'!M26 -> 1,079 > 1,022
B15: Ar galioja VS išlaidų augimą ribojimo taisyklė? | C15: =IF(C11="taip","Netikrinama",'5. GGexpenditure'!F25) -> Netikrinama | D15: =IF(D11="taip","Netikrinama",'5. GGexpenditure'!G25) -> Netiesa | E15: Is GG expenditure growth limiting rule valid? | F15: =IF(F11="yes","Not verified",'5. GGexpenditure'!L25) -> Not verified | G15: =IF(G11="yes","Not verified",'5. GGexpenditure'!M25) -> FALSE
B16: VS priskiriamų biudžetų taisyklės | E16: Rules for the budgets attributable to GG sector
B17: Savivaldybių (j), kurių asignavimai didesni nei 0,3 proc. nominalaus BVP, ir PSDF struktūrinio biudžeto (SB) taisyklė | C17: Nėra duomenų | E17: Structural budget rule for local governments (j) with appropriations exceeding 0,3 % of nominal GDP and CHIF | F17: No data
B18: ='6. GGbudgets'!C13 -> Taisyklė planuojamam VSDF struktūriniam biudžetui | C18: ='6. GGbudgets'!E13 -> Galioja | D18: ='6. GGbudgets'!F13 -> Galioja | E18: ='6. GGbudgets'!H13 -> Rule for SSIF structural budget | F18: ='6. GGbudgets'!J13 -> Valid | G18: ='6. GGbudgets'!K13 -> Valid
B19: ='6. GGbudgets'!C17 -> Taisyklė planuojamiems vietos valdžios sektoriaus (j) asignavimams, kurie neviršija 0,3 proc. BVP | C19: Nėra duomenų | E19: ='6. GGbudgets'!H17 -> Rule for planned local governments (j) appropriations of which does not exceed 0.3 % of GDP | F19: No data
B21: Šaltiniai: | E21: Sources:
B22: Finansų ministerija | C22: FM | E22: Ministry of Finance | F22: MoF
B23: Fiskalinė institucija | C23: IFI | E23: Independent Fiscal Institution | F23: IFI

Sheet 2. Macro
B1: ↖ atgal į turinį | D1: ↖ back to content
A2: =Kalba -> LT
B3: 2 lentelė. Makroekonominiai ir ciklo rodikliai | D3: Table 2. Macroeconomic and cyclical indicators
B4: Rodiklis | C4: Žymėjimas | Formulė | D4: Indicator | E4: Notation | Formula | F4: =IF(A2="LT","Duomenys atnaujinti","Data updated on") -> Duomenys atnaujinti | G4: =IF(A2="LT","Faktas","Actuals") -> Faktas | N4: =CONCATENATE("2017-09-11",IF(A2="LT"," Projekcijos"," Projections")) -> 2017-09-11 Projekcijos
G5: 2010 | H5: =G5+1 -> 2011 | I5: 2012 | J5: 2013 | K5: 2014 | L5: 2015 | M5: 2016 | N5: =CONCATENATE(M5+1,"P") -> 2017P | O5: =CONCATENATE(M5+2,"P") -> 2018P | P5: =CONCATENATE(M5+3,"P") -> 2019P | Q5: =CONCATENATE(M5+4,"P") -> 2020P
B6: Laikas | C6: T | D6: Time | E6: T | G6: t–8 | H6: t−7 | I6: t−6 | J6: t−5 | K6: t−4 | L6: t−3 | M6: t−2 | N6: t−1 | O6: t | P6: t+1 | Q6: t+2
B7: Nominalus BVP, mln. EUR | C7: YN(T) | D7: Nominal GDP, million EUR | E7: YN(T) | F7: 2017-10-27 | G7: 28027.65947 | H7: 31275.3173 | I7: 33348.47624 | J7: 34959.64612 | K7: 36568.28063 | L7: 37426.60955 | M7: 38668.32153 | N7: 41374.17356 | O7: 43665.30397 | P7: 45537.03028 | Q7: 47411.73307
F8: 2017-08-25 | G8: 28027.6 | H8: 31275.3 | I8: 33348.4 | J8: 35002.1 | K8: 36590 | L8: 37330.50434 | M8: 38637.4 | N8: =M8*(1+N10%) -> 41309.29052 | O8: =N8*(1+O10%) -> 43516.69761 | P8: 45373.94142 | Q8: 47253.75959
B9: Nominalus BVP, metinis augimas proc. | C9: ΔYN(T)=(YN(T)/YN(T–1)–1)∙100 | D9: Nominal GDP growth, annual % change | E9: ΔYN(T)=(YN(T)/YN(T–1)–1)∙100 | F9: =$F$7 -> 2017-10-27 | H9: =(H7/G7-1)*100 -> 11.58733157 | I9: 6.628738309 | J9: 4.831314828 | K9: 4.601403891 | L9: 2.347195169 | M9: 3.317725007 | N9: =(N7/M7-1)*100 -> 6.997593695 | O9: =(O7/N7-1)*100 -> 5.537585908 | P9: =(P7/O7-1)*100 -> 4.286529912 | Q9: =(Q7/P7-1)*100 -> 4.116875374
F10: =$F$8 -> 2017-08-25 | H10: 11.5875066 | I10: 6.628553523 | J10: 4.958858596 | K10: 4.536584948 | L10: 2.023788857 | M10: 3.500878652 | N10: 6.915295847 | O10: 5.343609299 | P10: 4.267887761 | Q10: 4.142946621
B11: Realus BVP, mln. EUR | C11: YR(T) | D11: Real GDP, million EUR | E11: YR(T) | F11: =$F$7 -> 2017-10-27 | G11: 28027.65947 | H11: 29721.40758 | I11: 30858.83223 | J11: 31938.45339 | K11: 33068.30359 | L11: 33741.12749 | M11: 34532.2 | N11: 35793.65437 | O11: 36908.14477 | P11: 37858.09889 | Q11: 38778.23631
F12: =$F$8 -> 2017-08-25 | G12: 28027.6 | H12: 29723.1 | I12: 30863 | J12: 31945.3 | K12: 33061.8 | L12: 33649.8 | M12: 34423.331 | N12: =M12*(1+N14%) -> 35649.77159 | O12: =N12*(1+O14%) -> 36682.31896 | P12: 37614.31161 | Q12: 38534.12882
B13: Realus BVP, metinis augimas proc. | C13: ΔYR(T)=(YR(T)/YR(T–1)–1)∙100 | D13: Real GDP growth, annual % change | E13: ΔYR(T)=(YR(T)/YR(T–1)–1)∙100 | F13: =$F$7 -> 2017-10-27 | H13: =(H11/G11-1)*100 -> 6.043130767 | I13: 3.826954186 | J13: 3.498580738 | K13: 3.537585817 | L13: 2.03464898 | M13: =(M11/L11-1)*100 -> 2.344534906 | N13: =(N11/M11-1)*100 -> 3.652980021 | O13: =(O11/N11-1)*100 -> 3.113653595 | P13: 2.5738333 | Q13: 2.430490282
F14: =$F$8 -> 2017-08-25 | H14: 6.049394169 | I14: 3.83506431 | J14: 3.506788063 | K14: 3.495036829 | L14: 1.77848756 | M14: 2.298768505 | N14: 3.562817854 | O14: 2.896364613 | P14: 2.540713558 | Q14: 2.445391596
B15: Potencialus BVP, mln. EUR | C15: Y*(T) | D15: Potential GDP, million EUR | E15: Y*(T) | F15: 2017-10-27 | G15: 30577.8111 | H15: 31208.32961 | I15: 31806.1819 | J15: 32396.56296 | K15: 33040.78484 | L15: 33738.27539 | M15: 34460.61199 | N15: 35231.00019 | O15: 36059.80938 | P15: 36915.96674 | Q15: 37786.74539
F16: 2017-09-22 | G16: 30813.96682 | H16: 31081.00161 | I16: 31477.61057 | J16: 32083.49116 | K16: 32757.04787 | L16: 33482.12406 | M16: 34175.64938 | N16: 35041.80988 | O16: 36095.27546 | P16: 37206.76849 | Q16: 38331.5294
B17: Potencialus BVP, metinis augimas proc. | C17: ΔY*(T)=(Y*(T)/Y*(T–1)–1)∙100 | D17: Potential GDP growth, annual % change | E17: ΔY*(T)=(Y*(T)/Y*(T–1)–1)∙100 | F17: =$F$15 -> 2017-10-27 | H17: =(H15/G15-1)*100 -> 2.062013215 | I17: =(I15/H15-1)*100 -> 1.9156818 | J17: 1.856183394 | K17: 1.988550085 | L17: 2.110998711 | M17: 2.141000373 | N17: 2.235561577 | O17: 2.352499738 | P17: 2.37427036 | Q17: 2.358813081
F18: =$F$16 -> 2017-09-22 | H18: =(H16/G16-1)*100 -> 0.8666030933 | I18: =(I16/H16-1)*100 -> 1.276049489 | J18: 1.924798548 | K18: 2.099387206 | L18: 2.213496738 | M18: 2.071330114 | N18: 2.534437592 | O18: 3.006310407 | P18: 3.079331062 | Q18: 3.023000812
B19: Atotrūkis nuo potencialo, proc. pot. BVP | C19: AP(T)=(YR(T)/Y*(T–1)–1)∙100 | D19: Output gap (OG), % pot. GDP | E19: OG(T)=(YR(T)/Y*(T–1)–1)∙100 | F19: =$F$15 -> 2017-10-27 | G19: =(G$11/G15-1)*100 -> -8.339876348 | H19: =(H11/H15-1)*100 -> -4.764503734 | I19: -2.978507988 | J19: -1.414068447 | K19: 0.08328719314 | L19: 0.008453608572 | M19: 0.2077386538 | N19: 1.597042873 | O19: =(O11/O15-1)*100 -> 2.352578706 | P19: 2.552099362 | Q19: 2.623911912
F20: =$F$16 -> 2017-09-22 | G20: =(G$12/G16-1)*100 -> -9.042545016 | H20: =(H$12/H16-1)*100 -> -4.368912005 | I20: -1.952532487 | J20: -0.4307235869 | K20: 0.9303406354 | L20: 0.5007924257 | M20: =(M$12/M16-1)*100 -> 0.7247312974 | N20: 1.734960914 | O20: =(O$12/O16-1)*100 -> 1.626372119 | P20: 1.09534672 | Q20: 0.5285450987
B21: Ciklinė VS biudžeto dedamoji, proc. pot. BVP | C21: CB(T) = ε∙PA(T) | D21: Cyclical GG budgetary component, % pot. GDP | E21: CB(T) = ε∙OG(T) | F21: =$F$15 -> 2017-10-27 | G21: =G19*G35 -> -3.444368932 | H21: -1.967740042 | I21: -1.230123799 | J21: -0.5840102686 | K21: 0.03439761077 | L21: 0.00349134034 | M21: =M19*M35 -> 0.08579606401 | N21: 0.6595787066 | O21: =O19*O35 -> 0.9716150056 | P21: 1.054017036 | Q21: 1.08367562
F22: =$F$16 -> 2017-09-22 | G22: =G20*G35 -> -3.734571092 | H22: -1.804360658 | I22: -0.8063959173 | J22: -0.1778888414 | K22: 0.3842306824 | L22: 0.2068272718 | M22: =M20*M35 -> 0.2993140258 | N22: 0.7165388575 | O22: =O20*O35 -> 0.6716916854 | P22: 0.4523781956 | Q22: 0.2182891258
B23: Ciklinė VSDF biudžeto dedamoji, proc. pot. BVP | C23: CBVSDF(T) = εVSDF∙OG(T) | D23: Cyclical SSIF budgetary component, % pot. GDP | E23: CBSSIF(T) = εSSIF∙OG(T) | F23: =$F$15 -> 2017-10-27 | G23: =G19*G36 -> -0.8715170784 | H23: -0.4978906402 | I23: -0.3112540847 | J23: -0.1477701527 | K23: 0.008703511683 | L23: 0.0008834020957 | M23: 0.02170868932 | N23: =N19*N36 -> 0.1668909802 | O23: =O19*O36 -> 0.2458444748 | P23: 0.2666943833 | Q23: 0.2741987948
F24: =$F$16 -> 2017-09-22 | G24: =G20*G36 -> -0.9449459542 | H24: -0.4565513045 | I24: -0.2040396449 | J24: -0.04501061483 | K24: 0.0972205964 | L24: 0.05233280849 | M24: 0.07573442058 | N24: =N20*N36 -> 0.1813034155 | O24: =O20*O36 -> 0.1699558865 | P24: =P22*P36 -> 0.04727352144 | Q24: 0.02281121364
B25: BVP defliatorius, 2010 = 100 | C25: PY(T) = YN(T)/YR(T) | D25: GDP deflator, 2010 = 100 | E25: PY(T) = YN(T)/YR(T) | F25: =$F$7 -> 2017-10-27 | G25: =G7/G11*100 -> 100 | H25: 105.2282508 | I25: 108.0678491 | J25: 109.4594209 | K25: 110.584084 | L25: 110.9228183 | M25: 111.977579 | N25: 115.590806 | O25: 118.3080435 | P25: 120.2834575 | Q25: 122.2637685
F26: =$F$8 -> 2017-08-25 | G26: =G8/G12*100 -> 100 | H26: 105.2222009 | I26: 108.0530085 | J26: 109.5688568 | K26: 110.6715303 | L26: 110.9382651 | M26: 112.2418978 | N26: 115.8753301 | O26: 118.6312612 | P26: 120.6294612 | Q26: 122.6283324
B27: BVP defliatorius, metinis augimas proc. | C27: ΔPY(T)=(PY(T)/PY(T–1)–1)∙100 | D27: GDP deflator, annual % change | E27: ΔPY(T)=(PY(T)/PY(T–1)–1)∙100 | F27: =$F$7 -> 2017-10-27 | H27: =(H25/G25-1)*100 -> 5.228250774 | I27: =(I25/H25-1)*100 -> 2.698513257 | J27: 1.287683445 | K27: 1.027470425 | L27: 0.3063137793 | M27: 0.9508960123 | N27: 3.226741453 | O27: 2.35073846 | P27: 1.669720782 | Q27: 1.646370223
F28: =$F$8 -> 2017-08-25 | H28: =(H26/G26-1)*100 -> 5.222200914 | I28: =(I26/H26-1)*100 -> 2.690313943 | J28: 1.40287469 | K28: 1.006374944 | L28: 0.2410148776 | M28: 1.175097378 | N28: 3.237144434 | O28: 2.378358745 | P28: 1.684378958 | Q28: 1.657034053
B29: Vidutinė metinė SVKI infliacija | C29: ΔSVKI(T) | D29: Average annual HICP inflation | E29: ΔHICP(T) | F29: =$F$15 -> 2017-10-27 | G29: 1.198490502 | H29: 4.12252908 | I29: 3.166966254 | J29: 1.170234079 | K29: 0.2424614843 | L29: -0.6776755917 | M29: 0.6787253872 | N29: 3.5 | O29: 2.7 | P29: 2.5 | Q29: 2.5
B30: ES nominalus BVP, mlrd. EUR | C30: YNES(T) | D30: EU nominal GDP, billion EUR | E30: YNEU(T) | F30: 2017-10-12 | G30: 12828.8468 | H30: 13201.5893 | I30: 13463.3453 | J30: 13577.0339 | K30: 14043.7166 | L30: 14796.8285 | M30: 14904.2179
B31: ES nominalus BVP, metinis augimas proc. | C31: ΔYNES(T)=(YNES(T)/YNES(T–1)–1)∙100 | D31: EU nominal GDP growth, annual % change | E31: ΔYNEU(T)=(YNEU(T)/YNEU(T–1)–1)∙100 | F31: =$F$15 -> 2017-10-27 | H31: =(H30/G30-1)*100 -> 2.905502777 | I31: 1.982761273 | J31: 0.8444305443 | K31: 3.437294946 | L31: 5.362625304 | M31: 0.7257595775
B32: VS biudžeto balansas mln. EUR | C32: BL(t) | D32: Balance of GG budget, million EUR | E32: BL(t) | F32: =$F$15 -> 2017-10-27 | I32: -1048.974745 | J32: -912.4189064 | K32: -225.7588044 | L32: -91.60999996 | M32: 103
B33: VS biudžeto balansas proc. BVP | C33: B(t)=BL(t)/YN(t) | D33: Balance of GG budget, % of GDP | E33: B(t)=BL(t)/YN(t) | F33: =F7 -> 2017-10-27 | I33: =I32/I7*100 -> -3.145495277 | J33: =J32/J7*100 -> -2.609920316 | K33: =K32/K7*100 -> -0.6173623713 | L33: =L32/L7*100 -> -0.244772372 | M33: =M32/M7*100 -> 0.2663679103
F34: =F8 -> 2017-08-25 | I34: =I32/I8*100 -> -3.145502468 | J34: =J32/J8*100 -> -2.606754756 | K34: =K32/K8*100 -> -0.6169959127 | L34: =L32/L8*100 -> -0.2454025242 | M34: =M32/M8*100 -> 0.2665810846
B35: VS biudžeto dalinis elastingumas pot. BVP | C35: ε | D35: Semi-elasticity of the GG budget to the OG | E35: ε | F35: 2014-12-11 | G35: =H35 -> 0.413 | H35: 0.413 | I35: 0.413 | J35: 0.413 | K35: 0.413 | L35: =0.413 -> 0.413 | M35: =L35 -> 0.413 | N35: 0.413 | O35: 0.413 | P35: 0.413 | Q35: 0.413
B36: VSВА biudžeto semi-elastingumas pot. BVP | C36: εVSDF | D36: Semi-elasticity of the SSIF budget to the OG | E36: εSSIF | F36: 2017-10-17 | G36: 0.1045 | H36: 0.1045 | I36: 0.1045 | J36: 0.1045 | K36: 0.1045 | L36: =M36 -> 0.1045 | M36: =N36 -> 0.1045 | N36: 0.1045 | O36: 0.1045 | P36: 0.1045 | Q36: 0.1045
C38: Šaltiniai: | E38: Sources:
C39: Lietuvos statistikos departamentas | E39: Statistics Lithuania
C40: Europos Komisija arba Eurostatas | E40: European Commission or Eurostat
B41: 2016 rudens ERS duomenys | C41: Finansų ministerija (FM) | D41: 2016 autumn EDS data | E41: Ministry of Finance (MoF)
B42: 2016-09-30 revizuoti duomenys | C42: Fiskalinės institucijos skaičiavimai | D42: 2016-09-30 revised statistics | E42: Independent fiscal institution calculations
C43: ERS - ekonominės raidos scenarijus | E43: EDS - economic development scenario
C44: Dėmesio: langeliai su formulėmis, atnaujinami tik spalvoti langeliai | E44: Warning: cells with formulas, data inputs are marked with coloured cells
C45: Apvalinimo tikslumas | E45: Rounding threshold | F45: 0.05

Sheet 3. GGbudget
B1: ↖ atgal į turinį | D1: ↖ back to content
A2: =Kalba -> LT
B3: 3 lentelė. VS fiskaliniai rodikliai | D3: Table 3. GG fiscal indicators
B4: Rodiklis | C4: Žymėjimas | Formulė | D4: Indicator | E4: Notation | Formula | F4: =IF($A$2="LT","proc. BVP","% of GDP") -> proc. BVP | H4: =IF($A$2="LT","mln. EUR", "mil. EUR") -> mln. EUR | J4: =IF($A$2="LT","proc. BVP","% of GDP") -> proc. BVP | L4: =IF($A$2="LT","mln. EUR", "mil. EUR") -> mln. EUR
F5: ='2. Macro'!N5 -> 2017P | G5: ='2. Macro'!O5 -> 2018P | H5: =F5 -> 2017P | I5: 2018P | J5: 2017P | K5: 2018P | L5: 2017P | M5: 2018P
B6: Nominalus BVP, mln. EUR | D6: Nominal GDP, million EUR | H6: ='2. Macro'!N8 -> 41309.29052 | I6: ='2. Macro'!O8 -> 43516.69761 | L6: ='2. Macro'!N7 -> 41374.17356 | M6: ='2. Macro'!O7 -> 43665.30397
B7: Grynasis skolinimas (+) / grynasis skolinimasis (-), iš jo | C7: B=VP–VI | D7: Net lending (+) /net borrowing (-), of which | E7: B=TR–TE | F7: =-0.4 -> -0.4 | G7: =G10-G11 -> 0.603 | H7: 37.17836147 | I7: 262.4056866 | J7: 0.4418888241 | K7: =K10-K11 -> 0.5076788547 | L7: =L10-L11 -> 182.827849 | M7: 221.6795151
B8: Valstybinis socialinio draudimo fondas | C8: VSDF | D8: State Social Insurance Fund | E8: SSIF | F8: =H8/H6*100 -> 0.3415430239 | G8: =I8/I6*100 -> 0.501566093 | H8: 141.089 | I8: 218.265 | J8: =L8/L6*100 -> 0.3410074156 | K8: =M8/M6*100 -> 0.4998591105 | L8: =H8 -> 141.089 | M8: =I8 -> 218.265
B9: Privalomojo sveikatos draudimo fondas | C9: PSDF | D9: Compulsory Health Insurance Fund | E9: CHIF
B10: Visos pajamos | C10: VP | D10: Total revenues | E10: TR | F10: 35.79 | G10: 37 | H10: =F10*H6/100 -> 14784.59508 | I10: =G10*I6/100 -> 16101.17811 | J10: =L10/L6*100 -> 35.94753558 | K10: =M10/M6*100 -> 37.08493657 | L10: 14872.99576 | M10: 16193.25028
B11: Visos išlaidos, iš jų | C11: VI | D11: Total expenditures, of which | E11: TE | F11: 35.7 | G11: 36.397 | H11: =F11*H6/100 -> 14747.41671 | I11: =G11*I6/100 -> 15838.77243 | J11: =L11/L6*100 -> 35.50564676 | K11: =M11/M6*100 -> 36.57725772 | L11: 14690.16791 | M11: 15971.57077
B12: Centrinė valdžia, be pervedimų SAF | C12: CV | D12: Central government, net of transfers to SSF | E12: CG | H12: =9045.765-15.288-61.183 -> 8969.294 | I12: =9541.902-19.288 -133.4 -> 9389.214 | J12: =L12/L6*100 -> 21.5852384 | K12: =M12/M6*100 -> 21.59752884 | L12: =9007.185-15.288-61.183 -> 8930.714 | M12: =9583.314617-19.288 -133.4 -> 9430.626617
B13: Socialinės apsaugos fondai, be pervedimų CV | C13: SAF | D13: Social Security Funds, net of transfers to CG | E13: SSF | H13: =1599.087+3734.644-110.661 -> 5223.07 | I13: =1679.047+4012.346-0 -> 5691.393 | J13: =L13/L6*100 -> 12.62398629 | K13: =M13/M6*100 -> 13.03413118 | L13: =1599.087+3734.644-110.661 -> 5223.07 | M13: =1679.047+4012.346-0 -> 5691.393
B14: Konsoliduotos išlaidos VS posektorių, kurių išlaidos > 3 proc. BVP | C14: AV3=CV+SAF | D14: Consolidated expenditure of GG subsectors with exp. > 3 % of GDP | E14: AG3=CG+SSF | F14: =H14/H6*100 -> 34.35634895 | G14: =I14/I6*100 -> 34.65475973 | H14: =H12+H13 -> 14192.364 | I14: =I12+I13 -> 15080.607 | J14: =SUM(J12:J13) -> 34.2092247 | K14: =SUM(K12:K13) -> 34.63166002 | L14: =L12+L13 -> 14153.784 | M14: =M12+M13 -> 15122.01962
B15: Vienkartinės ir kitos laikinosios priemonės | C15: 1klp | D15: One-off and temporary measures | E15: 1off | F15: 0.026628 | G15: -0.00919 | H15: =F15*H6/100 -> 10.99983788 | I15: =G15*I6/100 -> -3.99918451 | J15: =L15/$L$6*100 -> 0.02658624193 | K15: =M15/$M$6*100 -> -0.009158723624 | L15: =H15 -> 10.99983788 | M15: =I15 -> -3.99918451
B16: Vienkartinės ir kitos laikinosios priemonės, VSDF | C16: 1klpVSDF | D16: One-off and temporary measures, SSIF | E16: 1offSSIF | F16: =H16/$H$6*100 -> 0 | G16: =I16/I6*100 -> 0 | H16: 0 | I16: 0 | J16: =L16/$L$6*100 -> 0 | K16: =M16/$M$6*100 -> 0 | L16: =H16 -> 0 | M16: =I16 -> 0
B17: Struktūrinis VS balansas | C17: SB = B–CB–1klp | D17: Structural GG balance, aggregated approach | E17: SB = B–CB–1off | F17: =F7-F15-'2. Macro'!N22 -> -1.143166858 | G17: =G7-G15-'2. Macro'!O22 -> -0.05950168535 | J17: =J7-J15-'2. Macro'!N21 -> -0.2442761244 | K17: =K7-K15-'2. Macro'!O21 -> -0.4547774272
B18: Struktūrinis VSDF balansas | C18: SBSSIF = VSDF–CBVSDF–1klpVSDF | D18: Structural SSIF balance | E18: SBSSIF = SSIF–CBSSIF–1offSSIF | F18: =J8-F16-'2. Macro'!N24 -> 0.1597040001 | G18: =K8-G16-'2. Macro'!O24 -> 0.329903224 | J18: =J8-J16-'2. Macro'!N23 -> 0.1741164354 | K18: =K8-K16-'2. Macro'!O23 -> 0.2540146357
B19: Vidutinio laikotarpio tikslas | C19: VLT | D19: Medium-term objective | E19: MTO | F19: -1 | G19: -1 | H19: =F19 -> -1 | I19: -1 | J19: -1 | K19: -1 | L19: -1 | M19: =K19 -> -1
B20: Struktūrinio postūmio užduotis | C20: SPU | D20: Structural adjustment target | E20: SAT | F20: 0 | G20: 0 | H20: 0 | I20: 0 | J20: 0 | K20: 0 | L20: 0 | M20: =K20 -> 0
C22: Šaltiniai: | E22: Sources:
C23: Finansų ministerija, VSDF, PSDF | E23: Ministry of Finance, SSIF, CHIF
C24: Fiskalinės institucijos skaičiavimai | E24: Independent fiscal institution calculations
C26: Dėmesio: langeliai su formulėmis, atnaujinami tik spalvoti langeliai | E26: Warning: cells with formulas, data inputs are marked with coloured cells

Sheet 4. SurplusGG
B1: ↖ atgal į turinį | G1: ↖ back to content
A2: =Kalba -> LT
B3: 4 lentelė. Perteklinio VS taisyklės sąlygos | G3: Table 4. Conditions of the surplus GG sector rule
B4: Nr. | C4: Sąlyga | D4: Formulė | E4: Išvada | G4: No. | H4: Condition | I4: Formula | J4: Conclusion
C5: Institucija, kurios projekcijų pagrindu atliekama analizė | E5: FM | F5: IFI | H5: Institution, projections of which are used for the analysis | J5: MoF | K5: IFI
B6: S1 | C6: VS yra faktiškai perteklinis t metais pagal struktūrinį balansą | D6: SB(t) > 0* | E6: =IF(J6,"Tiesa","Netiesa") -> Netiesa | F6: =IF(K6,"Tiesa","Netiesa") -> Netiesa | G6: C1 | H6: In terms of structural balance GG sector is actually in surplus | I6: SB(t) > 0* | J6: =IF(J19>eps,TRUE,FALSE) -> FALSE | K6: =IF(K19>eps,TRUE,FALSE) -> FALSE
E7: =CONCATENATE(TEXT(ROUND(J19,1),"0,0; –0,0"),IF(J6," ≥ "," < "),"0,1") -> –0,1 < 0,1 | F7: =CONCATENATE(TEXT(K19,"0,0; –0,0"),IF(K6," ≥ "," < "),"0,1") -> –0,5 < 0,1 | J7: =CONCATENATE(TEXT(ROUND(J19,1),"0.0; –0.0"),IF(J6," ≥ "," < "),"0.1") -> –0.0 < 0.1 | K7: =CONCATENATE(TEXT(ROUND(K19,1),"0.0; –0.0"),IF(K6," ≥ "," < "),"0.1") -> –0.1 < 0.1
B8: S2 | C8: Faktinio struktūrinio VS balanso rodiklio absoliučioji vertė yra mažesnė negu VLT absoliučioji vertė ir kiekvienais metais mažėja, išskyrus metus, kai produkcijos atotrūkio nuo potencialo rodiklis yra neigiamas | D8: |SB(t)| < |VLT| ir |SB(t)| < |SB(t–1)| ir AP(t) ≥ 0 | E8: =IF(J8,"Tiesa","Netiesa") -> Tiesa | F8: =IF(K8,"Tiesa","Netiesa") -> Netiesa | G8: C2 | H8: Actual structural GG sector balance indicator in absolute value is lower than MTO in absolute value and is annually decreasing, with the exception of the year when the output gap is negative | I8: |SB(t)| < |MTO| and |SB(t)| < |SB(t–1)| and OG(t) ≥ 0 | J8: =IF((J22>=-eps)*(ABS(J19)+eps<ABS($J$21))*(ABS(J19)+0.1<ABS(J20)),TRUE,FALSE) -> TRUE | K8: =IF((K22>=-eps)*(ABS(K19)+eps<ABS($J$21))*(ABS(K19)+0.1<ABS(K20)),TRUE,FALSE) -> FALSE
E9: =CONCATENATE(TEXT(ROUND(ABS(E19),1),"0,0; –0,0"),IF(ABS(E19)+eps<ABS($E$21)," < "," ≥ "),TEXT(ROUND(ABS(E21),1),"0,0; –0,0")," ir ",TEXT(ROUND(ABS(E19),1),"0,0; –0,0"),IF(ABS(E19)+0.1<ABS(E20)," < "," ≥ "),TEXT(ROUND(ABS(E20),1),"0,0; –0,0")," ir ",TEXT(ROUND(E22,1),"0,0; –0,0"),IF(E22<-eps," < "," ≥ "),"0,0") -> 0,1 < 1,0 ir 0,1 < 1,1 ir 1,6 ≥ 0,0 | F9: =CONCATENATE(TEXT(ROUND(ABS(F19),1),"0,0; –0,0"),IF(ABS(F19)+eps<ABS($E$21)," < "," ≥ "),TEXT(ROUND(ABS(E21),1),"0,0; –0,0")," ir ",TEXT(ROUND(ABS(F19),1),"0,0; –0,0"),IF(ABS(F19)+0.1<ABS(F20)," < "," ≥ "),TEXT(ROUND(ABS(F20),1),"0,0; –0,0")," ir ",TEXT(ROUND(F22,1),"0,0; –0,0"),IF(F22<-eps," < "," ≥ "),"0,0") -> 0,5 < 1,0 ir 0,5 ≥ 0,2 ir 2,4 ≥ 0,0 | J9: =CONCATENATE(TEXT(ROUND(ABS(J19),1),"0.0; –0.0"),IF(ABS(J19)+eps<ABS($J$21)," < "," ≥ "),TEXT(ROUND(ABS($J$21),1),"0.0; –0.0")," and ",TEXT(ROUND(ABS(J19),1),"0.0; –0.0"),IF(ABS(J19)+0.1<ABS(J20)," < "," ≥ "),TEXT(ROUND(ABS(J20),1),"0.0; –0.0")," and ",TEXT(ROUND(J22,1),"0.0; –0.0"),IF(J22<-eps," < "," ≥ "),"0.0") -> 0.0 < 0.1 and 0.0 < 0.1 and 0.2 ≥ 0.0 | K9: =CONCATENATE(TEXT(ROUND(ABS(K19),1),"0.0; –0.0"),IF(ABS(K19)+eps<ABS($J$21)," < "," ≥ "),TEXT(ROUND(ABS($J$21),1),"0.0; –0.0")," and ",TEXT(ROUND(ABS(K19),1),"0.0; –0.0"),IF(ABS(K19)+0.1<ABS(K20)," < "," ≥ "),TEXT(ROUND(ABS(K20),1),"0.0; –0.0")," and ",TEXT(ROUND(K22,1),"0.0; –0.0"),IF(K22<-eps," < "," ≥ "),"0.0") -> 0.1 < 0.1 and 0.1 ≥ 0.0 and 0.2 ≥ 0.0
B10: S3 | C10: Faktinio struktūrinio VS balanso rodiklio absoliučioji vertė yra mažesnė negu VLT absoliučioji vertė tais metais, kai produkcijos atotrūkio nuo potencialo rodiklis yra neigiamas | D10: |SB(t)| < |VLT| ir AP(t) < 0 | E10: =IF(J10,"Tiesa","Netiesa") -> Netiesa | F10: =IF(K10,"Tiesa","Netiesa") -> Netiesa | G10: C3 | H10: Actual structural GG sector balance indicator in absolute value is lower than the MTO in absolute value in the year when the output gap is negative | I10: |SB(t)| < |MTO| and OG(t) < 0 | J10: =IF((J22<-eps)*(ABS(J19)+eps<ABS($J$21)),TRUE,FALSE) -> FALSE | K10: =IF((K22<-eps)*(ABS(K19)+eps<ABS($J$21)),TRUE,FALSE) -> FALSE
E11: =CONCATENATE(TEXT(ROUND(ABS(E19),1),"0,0; –0,0"),IF(ABS(E19)+eps<ABS($E$21)," < "," ≥ "),TEXT(ROUND(ABS($E$21),1),"0,0; –0,0")," ir ",TEXT(ROUND(E22,1),"0,0; –0,0"),IF(E22<-eps," < "," ≥ "),"0,0") -> 0,1 < 1,0 ir 1,6 ≥ 0,0 | F11: =CONCATENATE(TEXT(ROUND(ABS(F19),1),"0,0; –0,0"),IF(ABS(F19)+eps<ABS($E$21)," < "," ≥ "),TEXT(ROUND(ABS($E$21),1),"0,0; –0,0")," ir ",TEXT(ROUND(F22,1),"0,0; –0,0"),IF(F22<-eps," < "," ≥ "),"0,0") -> 0,5 < 1,0 ir 2,4 ≥ 0,0 | J11: =CONCATENATE(TEXT(ROUND(ABS(J19),1),"0.0; –0.0"),IF(ABS(J19)+eps<ABS($J$21)," < "," ≥ "),TEXT(ROUND(ABS($J$21),1),"0.0; –0.0")," and ",TEXT(ROUND(J22,1),"0.0; –0.0"),IF(J22<-eps," < "," ≥ "),"0.0") -> 0.0 < 0.1 and 0.2 ≥ 0.0 | K11: =CONCATENATE(TEXT(ROUND(ABS(K19),1),"0.0; –0.0"),IF(ABS(K19)+eps<ABS($J$21)," < "," ≥ "),TEXT(ROUND(ABS($J$21),1),"0.0; –0.0")," and ",TEXT(ROUND(K22,1),"0.0; –0.0"),IF(K22<-eps," < "," ≥ "),"0.0") -> 0.1 < 0.1 and 0.2 ≥ 0.0
B12: S4 | C12: Faktinio struktūrinio VS balanso rodiklio postūmio VLT link absoliučioji vertė yra ne mažesnė negu struktūrinio postūmio užduoties absoliučioji vertė | D12: SPU(t) > 0 ir SB(t) ≥ SB(t–1)+SPU(t) | E12: =IF(J12,"Tiesa","Netiesa") -> Netiesa | F12: =IF(K12,"Tiesa","Netiesa") -> Netiesa | G12: C4 | H12: Actual structural GG sector balance indicator adjustment towards the MTO in absolute value is not lower than the structural adjustment target in absolute value. | I12: SAT(t) > 0 and SB(t) ≥ SB(t–1)+SAT(t) | J12: =IF(($J$23>0)*(J19>=J20+$J$23),TRUE,FALSE) -> FALSE | K12: =IF(($J$23>0)*(K19>=K20+$J$23),TRUE,FALSE) -> FALSE
E13: =IF($E$23=0,"Netaikoma",CONCATENATE(TEXT(ROUND(E19,1),"0,0; –0,0"),IF(E19>=E20+$E$23," ≥ "," < "),TEXT(ROUND(E20,1),"0,0; –0,0")," + ",TEXT(ROUND($E$23,1),"0,0; –0,0")," = ",TEXT(ROUND(J20+$E$23,1),"0,0; –0,0"))) -> Netaikoma | F13: =IF($E$23=0,"Netaikoma",CONCATENATE(TEXT(ROUND(F19,1),"0,0; –0,0"),IF(F19>=F20+$E$23," ≥ "," < "),TEXT(ROUND(F20,1),"0,0; –0,0")," + ",TEXT(ROUND($E$23,1),"0,0; –0,0")," = ",TEXT(ROUND(K20+$E$23,1),"0,0; –0,0"))) -> Netaikoma | J13: =IF($J$23=0,"Not aplicaple",CONCATENATE(TEXT(ROUND(J19,1),"0.0; –0.0"),IF(J19>=J20+$J$23," ≥ "," < "),TEXT(ROUND(J20,1),"0.0; –0.0")," + ",TEXT(ROUND($J$23,1),"0.0; –0.0")," = ",TEXT(ROUND(J20+$J$23,1),"0.0; –0.0"))) -> Not aplicaple | K13: =IF($J$23=0,"Not aplicaple",CONCATENATE(TEXT(ROUND(K19,1),"0.0; –0.0"),IF(K19>=K20+$J$23," ≥ "," < "),TEXT(ROUND(K20,1),"0.0; –0.0")," + ",TEXT(ROUND($J$23,1),"0.0; –0.0")," = ",TEXT(ROUND(K20+$J$23,1),"0.0; –0.0"))) -> Not aplicaple
B14: S | C14: t metais, išskyrus metus, kuriais susidaro išskirtinės aplinkybės, turi būti tenkinama bent viena iš S1–S4 sąlygų | E14: =IF(OR(J6,J8,J10,J12),"Taip","Ne") -> Taip | F14: =IF(OR(K6,K8,K10,K12),"Taip","Ne") -> Ne | G14: C | H14: At year t, with the exception of the year of exceptional circumstances, at least one of the C1–C4 conditions is satisfied | J14: =IF(E31>0,"Yes","No") -> Yes | K14: =IF(F31>0,"Yes","No") -> No
E15: =IF(J14="Yes",IF(E31=1,CONCATENATE("Tenkinama ",I27,I28,I29,I30," sąlyga"),CONCATENATE("Tenkinamos ", IF(E27=1,CONCATENATE(I27," "),""),IF(E28=1,CONCATENATE(I28," "),""),IF(E29=1,CONCATENATE(I29," "),""),IF(E30=1,CONCATENATE(I30," "),""),"sąlygos")),"Netenkinama nei viena iš sąlygų") -> Tenkinama S2 sąlyga | F15: =IF(K14="Yes",IF(F31=1,CONCATENATE("Tenkinama ",H27,H28,H29,H30," sąlyga"),CONCATENATE("Tenkinamos ", IF(F27=1,CONCATENATE(H27," "),""),IF(F28=1,CONCATENATE(H28," "),""),IF(F29=1,CONCATENATE(H29," "),""),IF(F30=1,CONCATENATE(H30," "),""),"sąlygos")),"Netenkinama nei viena iš sąlygų") -> Netenkinama nei viena iš sąlygų | J15: =IF(J14="Yes",IF(E31=1,CONCATENATE("Condition ",J27,J28,J29,J30," is valid"),CONCATENATE("Conditions ", IF(E27=1,CONCATENATE(J27," "),""),IF(E28=1,CONCATENATE(J28," "),""),IF(E29=1,CONCATENATE(J29," "),""),IF(E30=1,CONCATENATE(J30," "),""),"are valid")),"None of the conditions is valid") -> Condition C2 is valid | K15: =IF(K14="Yes",IF(F31=1,CONCATENATE("Condition ",K27,K28,K29,K30," is valid"),CONCATENATE("Conditions ", IF(F27=1,CONCATENATE(K27," "),""),IF(F28=1,CONCATENATE(K28," "),""),IF(F29=1,CONCATENATE(K29," "),""),IF(F30=1,CONCATENATE(K30," "),""),"are valid")),"None of the conditions is valid") -> None of the conditions is valid
C16: * nelygybės ženklas yra griežtas, jei skirtumas tarp lyginamų pusių po apvalinimo sudaro bent 0,1, kitaip ženklas interpretuojamas kaip = | H16: * inequality sign is strict, if a difference between both compared sides after rounding is at least 0,1, else the sign is interpreted as =
C17: Šaltinis: KĮ 3 straipsnis 1 dalis | H17: Source: CL Article 3(1)
D18: t = | E18: =FirstYear+8 -> 2018 | I18: t = | J18: =E18 -> 2018
D19: SB(t) = | E19: ='3. GGbudget'!G17 -> -0.05950168535 | F19: ='3. GGbudget'!K17 -> -0.4547774272 | I19: SB(t) = | J19: -0.05950168535 | K19: =F19 -> -0.4547774272
D20: SB(t–1) = | E20: ='3. GGbudget'!F17 -> -1.143166858 | F20: ='3. GGbudget'!J17 -> -0.2442761244 | I20: SB(t–1) = | J20: -1.143166858 | K20: =F20 -> -0.2442761244
D21: VLT = | E21: ='3. GGbudget'!F19 -> -1 | I21: MTO = | J21: -1
D22: PA(t) = | E22: ='2. Macro'!O20 -> 1.626372119 | F22: ='2. Macro'!O19 -> 2.352578706 | I22: OG(t) = | J22: 1.626372119 | K22: =F22 -> 2.352578706
D23: SPU(t) = | E23: ='3. GGbudget'!F20 -> 0 | I23: SAT(t) = | J23: 0
D24: Šaltiniai: | I24: Sources:
D25: Finansų ministerija | E25: FM | I25: Ministry of Finance | J25: MoF
D26: Fiskalinė institucija | E26: IFI | I26: Independent Fiscal Institution | J26: IFI
C27: S1 | D27: C1 | E27: =J6*1 -> 0 | F27: =(K6)*1 -> 0 | G27: =IF(#REF!=1,$C27,"") ->  | H27: =IF(F27=1,$C27,"") ->  | I27: =IF(E27=1,$C27,"") ->  | J27: =IF(E27=1,$D27,"") -> 
C28: S2 | D28: C2 | E28: =J8*1 -> 1 | F28: =(K8)*1 -> 0 | G28: =IF(#REF!=1,$C28,"") ->  | H28: =IF(F28=1,$C28,"") ->  | I28: =IF(E28=1,$C28,"") -> S2 | J28: C2
C29: S3 | D29: C3 | E29: =J10*1 -> 0 | F29: =(K10)*1 -> 0 | G29: =IF(#REF!=1,$C29,"") ->  | H29: =IF(F29=1,$C29,"") ->  | I29: =IF(E29=1,$C29,"") -> 
C30: S4 | D30: C4 | E30: =J12*1 -> 0 | F30: =(K12)*1 -> 0 | G30: =IF(#REF!=1,$C30,"") ->  | H30: =IF(F30=1,$C30,"") ->  | I30: =IF(E30=1,$C30,"") -> 
E31: =SUM(E27:E30) -> 1 | F31: =SUM(F27:F30) -> 0

Sheet 5. GGexpenditure
B1: ↖ atgal į turinį | H1: ↖ back to content
A2: =Kalba -> LT
B3: 5 lentelė. VS išlaidų augimo ribojimo taisyklė | H3: Table 5. GG expenditure growth limiting rule
B4: Nr. | C4: VS išlaidų augimo ribojimo taisyklės netaikymo aplinkybės | D4: Formulė | F4: Išvada | H4: No. | I4: GG expenditure growh limiting rule application escape clause | J4: Formula | L4: Conclusion
C5: Institucija, kurios projekcijų pagrindu atliekama analizė | F5: FM | G5: IFI | I5: Institution, projections of which are used for the analysis | L5: MoF | M5: IFI
B6: A1 | C6: Pagal 4 paskutinius metų ketvirčius apskaičiuotas Lietuvos BVP to meto kainomis augimas yra mažesnis negu daugiametis ES BVP to meto kainomis augimas, padidintas 2 procentiniais punktais | F6: =IF(L6,"Tiesa","Netiesa") -> Netiesa | G6: =IF(M6,"Tiesa","Netiesa") -> Netiesa | H6: E1 | I6: Lithuanian GDP at current prices calculated on the basis of 4 last quarters of the year grows at a slower pace than the multi-annual growth of the GDP of the EU at current prices increased by 2 percentage points | L6: =IF('5. GGexpenditure'!L44+eps<AVERAGE('2. Macro'!H31:L31)+2,TRUE,FALSE) -> FALSE | M6: =IF('5. GGexpenditure'!M44+eps<AVERAGE('2. Macro'!I31:M31)+2,TRUE,FALSE) -> FALSE
F7: =CONCATENATE(TEXT(ROUND('5. GGexpenditure'!L44,1),"0,0;–0,0"),IF(L6," < "," ≥ "),TEXT(ROUND(AVERAGE('2. Macro'!I31:M31)+2,1),"0,0;–0,0")) -> 5,9 ≥ 4,5 | G7: =CONCATENATE(TEXT(ROUND('5. GGexpenditure'!M44,1),"0,0;–0,0"),IF(M6," < "," ≥ "),TEXT(ROUND(AVERAGE('2. Macro'!J31:N31)+2,1),"0,0;–0,0")) -> 5,8 ≥ 4,6 | L7: =CONCATENATE(TEXT(ROUND('5. GGexpenditure'!L44,1),"0.0;–0.0"),IF(L6," < "," ≥ "),TEXT(ROUND(AVERAGE('2. Macro'!I31:M31)+2,1),"0.0;–0.0")) -> 0.6 ≥ 0.5 | M7: =CONCATENATE(TEXT(ROUND('5. GGexpenditure'!M44,1),"0.0;–0.0"),IF(M6," < "," ≥ "),TEXT(ROUND(AVERAGE('2. Macro'!J31:N31)+2,1),"0.0;–0.0")) -> 0.6 ≥ 0.5
B8: A2 | C8: Numatomas VS balanso rodiklio postūmis yra teigiamas ir sudaro bent 1,0 procentinį punktą BVP | D8: B(t) ≥ B(t–1)+1 | F8: =IF(L8,"Tiesa","Netiesa") -> Tiesa | G8: =IF(M8,"Tiesa","Netiesa") -> Netiesa | H8: E2 | I8: Projected GG sector balance indicator adjustment is positive and makes up at least 1.0 percentage point of GDP | J8: B(t) ≥ B(t–1)+1 | L8: =IF('3. GGbudget'!G7>='3. GGbudget'!F7+1,TRUE,FALSE) -> TRUE | M8: =IF('3. GGbudget'!K7>='3. GGbudget'!J7+1,TRUE,FALSE) -> FALSE
F9: =CONCATENATE(TEXT(ROUND('3. GGbudget'!G7,1),"0,0;–0,0"),IF(L8," ≥ "," < "),TEXT(ROUND('3. GGbudget'!F7+1,1),"0,0;–0,0")) -> 0,6 ≥ 0,6 | G9: =CONCATENATE(TEXT(ROUND('3. GGbudget'!K7,1),"0,0;–0,0"),IF(M8," ≥ "," < "),TEXT(ROUND('3. GGbudget'!J7+1,1),"0,0;–0,0")) -> 0,5 < 1,4 | L9: =CONCATENATE(TEXT(ROUND('3. GGbudget'!G7,1),"0.0;–0.0"),IF(L8," ≥ "," < "),TEXT(ROUND('3. GGbudget'!F7+1,1),"0.0;–0.0")) -> 0.1 ≥ 0.1 | M9: =CONCATENATE(TEXT(ROUND('3. GGbudget'!K7,1),"0.0;–0.0"),IF(M8," ≥ "," < "),TEXT(ROUND('3. GGbudget'!J7+1,1),"0.0;–0.0")) -> 0.1 < 0.1
B10: A2* | C10: A2, kai numatomas einamųjų metų VS balanso rodiklio teigiamas postūmis nėra mažesnis už suplanuotą einamųjų kalendorinių metų VS balanso rodiklio teigiamą postūmį daugiau kaip 0,5 procentinio punkto BVP to meto kainomis | D10: B(t) ≥ B(t–1)+1 ir B(t–1)–B(t–2) ≥ BP(t–1)–BP(t–2)+0,5 | F10: =IF(L10,"Tiesa","Netiesa") -> Netiesa | G10: =IF(M10,"Tiesa","Netiesa") -> Netiesa | H10: E2* | I10: E2, when projected current year GG sector balance indicator positive adjustment is not greater than planned current year GG positive adjustment more than by 0,5 % of GDP at current prices | J10: B(t) ≥ B(t–1)+1 and B(t–1)–B(t–2) ≥ BP(t–1)–BP(t–2)+0,5 | L10: =IF(('3. GGbudget'!G7>='3. GGbudget'!F7+1)*(L38-L39>=0.5),TRUE,FALSE) -> FALSE | M10: =IF(('3. GGbudget'!K7>='3. GGbudget'!J7+1)*(M38-M39>=0.5),TRUE,FALSE) -> FALSE
F11: =CONCATENATE(TEXT(ROUND('3. GGbudget'!G7,1),"0,0;–0,0"),IF(('3. GGbudget'!G7>='3. GGbudget'!F7+1)," ≥ "," < "),TEXT(ROUND('3. GGbudget'!F7+1,1),"0,0;–0,0")," ir ",TEXT(ROUND(F38,1),"0,0;–0,0"),IF(F38-F39>=0.5," ≥ "," < "),TEXT(ROUND(F39+0.5,1),"0,0;–0,0")) -> 0,6 ≥ 0,6 ir –0,2 < 0,4 | G11: =CONCATENATE(TEXT(ROUND('3. GGbudget'!K7,1),"0,0;–0,0"),IF(('3. GGbudget'!K7>='3. GGbudget'!J7+1)," ≥ "," < "),TEXT(ROUND('3. GGbudget'!J7+1,1),"0,0;–0,0")," ir ",TEXT(ROUND(G38,1),"0,0;–0,0"),IF(G38-G39>=0.5," ≥ "," < "),TEXT(ROUND(G39+0.5,1),"0,0;–0,0")) -> 0,5 < 1,4 ir –0,2 < 0,2 | L11: =CONCATENATE(TEXT(ROUND('3. GGbudget'!G7,1),"0.0;–0.0"),IF(('3. GGbudget'!G7>='3. GGbudget'!F7+1)," ≥ "," < "),TEXT(ROUND('3. GGbudget'!F7+1,1),"0.0;–0.0")," and ",TEXT(ROUND(L38,1),"0.0;–0.0"),IF(L38-L39>=0.5," ≥ "," < "),TEXT(ROUND(L39+0.5,1),"0.0;–0.0")) -> 0.1 ≥ 0.1 and –0.0 < 0.0 | M11: =CONCATENATE(TEXT(ROUND('3. GGbudget'!K7,1),"0.0;–0.0"),IF(('3. GGbudget'!K7>='3. GGbudget'!J7+1)," ≥ "," < "),TEXT(ROUND('3. GGbudget'!J7+1,1),"0.0;–0.0")," and ",TEXT(ROUND(M38,1),"0.0;–0.0"),IF(M38-M39>=0.5," ≥ "," < "),TEXT(ROUND(M39+0.5,1),"0.0;–0.0")) -> 0.1 < 0.1 and –0.0 < 0.0
B12: A3 | C12: Ne mažiau kaip penkerių iš eilės einančių metų VS balanso rodiklio aritmetinis vidurkis yra perteklius, ne mažesnis negu 0,1 procento BVP | F12: =IF(L12,"Tiesa","Netiesa") -> Netiesa | G12: =IF(M12,"Tiesa","Netiesa") -> Netiesa | H12: E3 | I12: The arithmetic average of GG sector balance indicator of at least five successive years is in surplus, at least 0.1 % of GDP | L12: =IF(AVERAGE('2. Macro'!I34:M34)>=0.1,TRUE,FALSE) -> FALSE | M12: =IF(AVERAGE('2. Macro'!I33:M33)>=0.1,TRUE,FALSE) -> FALSE
F13: =CONCATENATE(TEXT(ROUND(AVERAGE('2. Macro'!I34:M34),1),"0,0;–0,0"),IF(L12," ≥ "," < "),"0,1") -> –1,3 < 0,1 | G13: =CONCATENATE(TEXT(ROUND(AVERAGE('2. Macro'!I34:M34),1),"0,0;–0,0"),IF(M12," ≥ "," < "),"0,1") -> –1,3 < 0,1 | L13: =CONCATENATE(TEXT(ROUND(AVERAGE('2. Macro'!I34:M34),1),"0.0;–0.0"),IF(L12," ≥ "," < "),"0.1") -> –0.1 < 0.1 | M13: =CONCATENATE(TEXT(ROUND(AVERAGE('2. Macro'!I34:M34),1),"0.0;–0.0"),IF(M12," ≥ "," < "),"0.1") -> –0.1 < 0.1
B14: A4 | C14: Keičiant einamųjų metų bet kurio iš VS priskiriamų biudžetų, kurių kiekvieno atskirai planuojami asignavimai viršija 3 procentus BVP to meto kainomis, pajamas ar išlaidas, pakeistas VS balansas nepablogės, palyginti su buvusiu prieš keitimą | D14: B*(t–1) ≥ B(t–1) | F14: Netaikoma | G14: =F14 -> Netaikoma | H14: E4 | I14: If planned current year GG sector budgets, the planned appropriations of each of which exceed 3 % of GDP at current prices, are subject to amendment, the adjusted aggregate balances of the GG budgets is not worse than the one before the amendment | J14: B*(t–1) ≥ B(t–1) | L14: Not applied | M14: =L14 -> Not applied
B15: A5 | C15: Pagal Vyriausybės arba jos įgaliotos institucijos viešai paskelbtą ekonominės raidos scenarijų, dėl kurio tvirtinimo kontrolės institucija paskelbė išvadą, apskaičiuotas produkcijos atotrūkis nuo potencialo planuojamais metais yra neigiamas | D15: AP(t) < 0 | F15: =IF(L15,"Tiesa","Netiesa") -> Netiesa | G15: =IF(M15,"Tiesa","Netiesa") -> Netiesa | H15: E5 | I15: The output gap for the planned year calculated on the basis of the economic development scenario, which is made public by the Government or its authorised institution and in regard to which the monitoring authority published its conclusion, is negative | J15: OG(t) < 0 | L15: =IF(L45+eps<0,TRUE,FALSE) -> FALSE | M15: =IF(M45+eps<0,TRUE,FALSE) -> FALSE
F16: =CONCATENATE(TEXT(ROUND(L45,1),"0,0;–0,0"),IF(L12," < "," ≥ "),FIXED(0,1)) -> 1,6 ≥ 0,0 | G16: =CONCATENATE(TEXT(ROUND(M45,1),"0,0;–0,0"),IF(M12," < "," ≥ "),FIXED(0,1)) -> 2,4 ≥ 0,0 | L16: =CONCATENATE(TEXT(ROUND(L45,1),"0.0;–0.0"),IF(L12," < "," ≥ "),FIXED(0,1)) -> 0.2 ≥ 0,0 | M16: =CONCATENATE(TEXT(ROUND(M45,1),"0.0;–0.0"),IF(M12," < "," ≥ "),FIXED(0,1)) -> 0.2 ≥ 0,0
B17: A5* | C17: A5, o prognozuojama vidutinė metinė infliacija, apskaičiuojama pagal suderintą vartotojų kainų indeksą, neviršija 3 procentų | D17: AP(t) < 0 ir ΔSVKI(t) ≤ 3 | F17: =IF(L17,"Tiesa","Netiesa") -> Netiesa | G17: =IF(M17,"Tiesa","Netiesa") -> Netiesa | H17: E5* | I17: E5, and project annual inflation, estimated by harmonised index of consumer prices is not greater that 3 % | J17: OG(t) < 0 and ΔHICP(t) ≤ 3 | L17: =IF((F45+eps<0)*($F$46<=3),TRUE,FALSE) -> FALSE | M17: =IF((G45+eps<0)*($F$46<=3),TRUE,FALSE) -> FALSE
F18: =CONCATENATE(TEXT(ROUND(L45,1),"0,0;–0,0"),IF(L15," < "," ≥ "),FIXED(0,1), " ir ", TEXT(ROUND($L$46,1),"0,0;–0,0"),IF(L46<=3," ≤ "," > "), FIXED(3,1)) -> 1,6 ≥ 0,0 ir 2,7 ≤ 3,0 | G18: =CONCATENATE(TEXT(ROUND(M45,1),"0,0;–0,0"),IF(M15," < "," ≥ "),FIXED(0,1), " ir ", TEXT(ROUND($L$46,1),"0,0;–0,0"),IF(M46<=3," ≤ "," > "), FIXED(3,1)) -> 2,4 ≥ 0,0 ir 2,7 ≤ 3,0 | L18: =CONCATENATE(TEXT(ROUND(L45,1),"0.0;–0.0"),IF($L$15," < "," ≥ "),FIXED(0,1), " and ", TEXT(ROUND($L$46,1),"0.0;–0.0"),IF(L46<=3," ≤ "," > "), FIXED(3,1)) -> 0.2 ≥ 0,0 and 0.3 ≤ 3,0 | M18: =CONCATENATE(TEXT(ROUND(M45,1),"0.0;–0.0"),IF($L$15," < "," ≥ "),FIXED(0,1), " and ", TEXT(ROUND($L$46,1),"0.0;–0.0"),IF(M46<=3," ≤ "," > "), FIXED(3,1)) -> 0.2 ≥ 0,0 and 0.3 ≤ 3,0
B19: A | C19: t metais, VS išlaidų augimo ribojimo taisyklė netaikoma, kai susidaro bent viena iš A1–A5 aplinkybių | F19: =IF(L19="yes","Taip","Ne") -> Taip | G19: =IF(M19="yes","Taip","Ne") -> Ne | H19: E | I19: at year t the GG expenditure growth limiting rule is not applied when at least one of the E1–E5 escape clauses emerges | L19: =IF(F56>0,"Yes","No") -> Yes | M19: =IF(G56>0,"Yes","No") -> No
F20: =IF(F19="TAIP",IF(F56=1,CONCATENATE("Susidaro ",H51,H52,H53,H54,H55," aplinkybė"),CONCATENATE("Susidaro ", IF(F51=1,CONCATENATE(H51," "),""),IF(F52=1,CONCATENATE(H52," "),""),IF(F53=1,CONCATENATE(H53," "),""),IF(F54=1,CONCATENATE(H54," "),""),IF(F55=1,CONCATENATE(H55," "),""),"aplnkybės")),"Išimčių nėra") -> Susidaro A2 aplinkybė | G20: =IF(G19="TAIP",IF(G56=1,CONCATENATE("Susidaro ",I51,I52,I53,I54,I55," aplinkybė"),CONCATENATE("Susidaro ", IF(G51=1,CONCATENATE(I51," "),""),IF(G52=1,CONCATENATE(I52," "),""),IF(G53=1,CONCATENATE(I53," "),""),IF(G54=1,CONCATENATE(I54," "),""),IF(G55=1,CONCATENATE(I55," "),""),"aplnkybės")),"Išimčių nėra") -> Išimčių nėra | L20: =IF(L19="YES",IF(F56=1,CONCATENATE("Escape clause ",J51,J52,J53,J54,J55," emerges"),CONCATENATE("Escape clauses ", IF(F51=1,CONCATENATE(J51," "),""),IF(F52=1,CONCATENATE(J52," "),""),IF(F53=1,CONCATENATE(J53," "),""),IF(F54=1,CONCATENATE(J54," "),""),IF(F55=1,CONCATENATE(J55," "),""),"emerge") ),"There is no escape clauses") -> Escape clause E2 emerges | M20: =IF(M19="YES",IF(G56=1,CONCATENATE("Escape clause ",K51,K52,K53,K54,K55," emerges"),CONCATENATE("Escape clauses ", IF(G51=1,CONCATENATE(K51," "),""),IF(G52=1,CONCATENATE(K52," "),""),IF(G53=1,CONCATENATE(K53," "),""),IF(G54=1,CONCATENATE(K54," "),""),IF(G55=1,CONCATENATE(K55," "),""),"emerge") ),"There is no escape clauses") -> There is no escape clauses
B21: Nr. | C21: Taisyklė | D21: Formulė | F21: Išvada | H21: No. | I21: Rule | J21: Formula | L21: Conclusion
B22: T1 | C22: Metais t rengiant, tvirtinant ir keičiant VS priskiriamų biudžetų, kurių kiekvieno atskirai planuojami asignavimai viršija 3 proc. BVP to meto kainomis (CV, VSDF ir PSDF išlaidos), patvirtinimo įstatymų arba šių įstatymų pakeitimo įstatymų projektus, vadovaujamasi nuostata, kad tuo atveju, kai paskutinių penkerių pasibaigusių metų VS balanso rodiklių aritmetinis vidurkis yra neigiamas, šių biudžetų asignavimų (išskyrus ES finansinės paramos lėšas) visumos augimas turi būti ne didesnis negu 0,5 potencialaus BVP to meto kainomis daugiamečio augimo vidurkio | D22: Jei | F22: =IF((L19="YES"),"",IF(L22,"TIESA","NETIESA")) ->  | G22: =IF((M19="YES"),"",IF(M22,"TIESA","NETIESA")) -> TIESA | H22: R1 | I22: At year t the preparation, approval and amendment of draft laws or their draft amending laws on approval of the budgets attributable to the GG sector the planned appropriations of each of which exceed 3 % of GDP (CG and SSF expenditure) at current prices shall rely on the provision that, in case where arithmetic average of GG sector balance indicators of the past five complete years is negative, the aggregate growth of the appropriations of these budgets (net of EU financial support) is not higher than 0.5 % of the average multi-annual growth rate of the potential GDP at current prices | J22: If | L22: =IF((L19="YES"),"",IF(AVERAGE('2. Macro'!I34:M34)+eps<0,TRUE,FALSE)) ->  | M22: =IF((M19="YES"),"",IF(AVERAGE('2. Macro'!I33:M33)+eps<0,TRUE,FALSE)) -> TRUE
F23: =IF((L19="YES"),"",CONCATENATE(TEXT(ROUND(AVERAGE('2. Macro'!I34:M34),1),"0,0;–0,0"),IF(L12," ≥ "," < "),FIXED(0,1))) ->  | G23: =IF((M19="YES"),"",CONCATENATE(TEXT(ROUND(AVERAGE('2. Macro'!J34:N34),1),"0,0;–0,0"),IF(M12," ≥ "," < "),FIXED(0,1))) -> –0,8 < 0,0 | L23: =IF((L19="YES"),"",CONCATENATE(TEXT(ROUND(AVERAGE('2. Macro'!I34:M34),1),"0.0;–0.0"),IF(L12," ≥ "," < "),FIXED(0,1))) ->  | M23: =IF((M19="YES"),"",CONCATENATE(TEXT(ROUND(AVERAGE('2. Macro'!I33:M33),1),"0.0;–0.0"),IF(M12," ≥ "," < "),FIXED(0,1))) -> –0.1 < 0,0
F24: =L24 ->  | G24: =M24 -> 0.04425590088 | L24: =IF(L19="YES","",POWER('2. Macro'!Q16/'2. Macro'!G16,0.1)*POWER(PRODUCT(F40:F43),0.25)-1) ->  | M24: =IF(M19="YES","",POWER('2. Macro'!Q15/'2. Macro'!G15,0.1)*POWER(PRODUCT(F40:F43),0.25)-1) -> 0.04425590088
F25: =IF(F19="TAIP","Netaikoma,",IF(L25,"Tiesa","Netiesa")) -> Netaikoma, | G25: =IF(G19="TAIP","Netaikoma,",IF(M25,"Tiesa","Netiesa")) -> Netiesa | L25: =IF(L19="YES","Not applied,",IF($F$32-$F$34<=($F$33-$F$35)*(1+0.5*L24),TRUE,FALSE)) -> Not applied, | M25: =IF(M19="YES","Not applied,",IF($G$32-$F$34<=($G$33-$F$35)*(1+0.5*M24),TRUE,FALSE)) -> FALSE
F26: =IF(L19="YES"," nes susidarė viena iš KĮ numatytų netaikymo aplinkybių",CONCATENATE(ROUND(($F$32-F34)/($F$33-F35),3),IF(L25," ≤ "," > "), ROUND(1+0.5*L24,3))) -> nes susidarė viena iš KĮ numatytų netaikymo aplinkybių | G26: =IF(M19="YES"," nes susidarė viena iš KĮ numatytų netaikymo aplinkybių",CONCATENATE(ROUND(($G$32-F34)/($G$33-F35),3),IF(M25," ≤ "," > "), ROUND(1+0.5*M24,3))) -> 1,079 > 1,022 | L26: =IF(L19="YES"," since one of CL escape clauses emerged",CONCATENATE(ROUND(($F$32-F34)/($F$33-F35),3),IF(L25," ≤ "," > "), ROUND(1+0.5*L24,3))) -> since one of CL escape clauses emerged | M26: =IF(M19="YES"," since one of CL escape clauses emerged",CONCATENATE(ROUND(($G$32-F34)/($G$33-F35),3),IF(M25," ≤ "," > "), ROUND(1+0.5*M24,3))) -> 1,079 > 1,022
B27: T2 | C27: Pagal FDĮ panaši į T1 išlaidų ribojimo taisyklė turi būti pritaikyta visam konsoliduotam VS biudžetui (be Europos Sąjungos finansinės paramos lėšų) | F27: =IF(F19="TAIP","Netaikoma,",IF(L27,"Tiesa","Netiesa")) -> Netaikoma, | G27: =IF(G19="TAIP","Netaikoma,",IF(M27,"Tiesa","Netiesa")) -> Netiesa | H27: R2 | I27: According to FDL a similar to R1 GG consolidated budget's expenditure growth rule is applied (net of EU financial support) | L27: =IF(L19="YES","Not applied,",IF($F$36-$F$34<=($F$37-$F$35)*(1+0.5*L24),TRUE,FALSE)) -> Not applied, | M27: =IF(M19="YES","Not applied,",IF($F$36-$F$34<=($F$37-$F$35)*(1+0.5*M24),TRUE,FALSE)) -> FALSE
F28: =IF(L19="YES"," nes susidarė viena iš FDĮ numatytų netaikymo aplinkybių",CONCATENATE(ROUND(($F$36-$F$34)/($F$37-$F$35),3),IF(L25," ≤ "," > "), ROUND(1+0.5*L24,3))) -> nes susidarė viena iš FDĮ numatytų netaikymo aplinkybių | G28: =IF(M19="YES"," nes susidarė viena iš FDĮ numatytų netaikymo aplinkybių",CONCATENATE(ROUND(($G$36-$F$34)/($G$37-$F$35),3),IF(M25," ≤ "," > "), ROUND(1+0.5*M24,3))) -> 1,101 > 1,022 | L28: =IF(L19="YES"," since one of FDL escape clauses emerged",CONCATENATE(ROUND(($F$36-$F$34)/($F$37-$F$35),3),IF(L25," ≤ "," > "), ROUND(1+0.5*L24,3))) -> since one of FDL escape clauses emerged | M28: =IF(M19="YES"," since one of FDL escape clauses emerged",CONCATENATE(ROUND(($G$36-$F$34)/($G$37-$F$35),3),IF(M25," ≤ "," > "), ROUND(1+0.5*M24,3))) -> 1,101 > 1,022
C29: * nelygybės ženklas yra griežtas, jei skirtumas tarp lyginamų pusių po apvalinimo sudaro bent 0,1, kitaip ženklas interpretuojamas kaip = | I29: * inequality sign is strict, if a difference between both compared sides after rounding is at least 0,1, else the sign is interpreted as =
C30: Šaltiniai: KĮ 3 straipsnis 3 dalis, taisyklės pažymėtos * FDĮ 2-3 straipsniai | I30: Source: CL Article 3(3), rules denoted by * FDL Articles 2 and 3
E31: t = | F31: =FirstYear+8 -> 2018 | K31: t = | L31: =F31 -> 2018
E32: AV3(t) = | F32: ='3. GGbudget'!I14 -> 15080.607 | G32: ='3. GGbudget'!M14 -> 15122.01962 | K32: AG3(t) = | L32: 15080.607 | M32: =G32 -> 15122.01962
E33: AV3(t–1) = | F33: ='3. GGbudget'!H14 -> 14192.364 | G33: ='3. GGbudget'!L14 -> 14153.784 | K33: AG3(t–1) = | L33: 14192.364 | M33: =G33 -> 14153.784
E34: ES(t) = | F34: 2116.285 | K34: EU(t) = | L34: 2116.285
E35: ES(t–1) = | F35: 2101.334 | K35: EU(t–1) = | L35: 2101.334
E36: VI(t) = | F36: ='3. GGbudget'!I11 -> 15838.77243 | G36: ='3. GGbudget'!M11 -> 15971.57077 | K36: TE(t) = | L36: 15838.77243 | M36: =G36 -> 15971.57077
E37: VI(t–1) = | F37: ='3. GGbudget'!H11 -> 14747.41671 | G37: ='3. GGbudget'!L11 -> 14690.16791 | K37: TE(t–1) = | L37: 14747.41671 | M37: =G37 -> 14690.16791
E38: B(t–1)–B(t–2) = | F38: -0.1763680586 | G38: -0.1763680586 | K38: B(t–1)–B(t–2) = | L38: -0.1763680586 | M38: =G38 -> -0.1763680586
E39: BP(t–1)–BP(t–2) = | F39: -0.1 | G39: -0.3412618822 | K39: BP(t–1)–BP(t–2) = | L39: -0.1 | M39: =G39 -> -0.3412618822
C40: =CONCATENATE(FirstYear+7," m. pavasario ERS") -> 2017 m. pavasario ERS | E40: PY1(t)/PY1(t–1) = | F40: 1.017763455 | I40: =CONCATENATE("Spring ",FirstYear+7," EDS") -> Spring 2017 EDS | K40: PY1(t)/PY1(t–1) = | L40: 1.017763455
C41: =CONCATENATE(FirstYear+7," m. rudens ERS") -> 2017 m. rudens ERS | E41: PY2(t)/PY2(t–1) = | F41: 1.023783587 | I41: =CONCATENATE("Autumn ",FirstYear+7," EDS") -> Autumn 2017 EDS | K41: PY2(t)/PY2(t–1) = | L41: 1.023783587
C42: =CONCATENATE(FirstYear+7," m. žiemos EK projekcijos") -> 2017 m. žiemos EK projekcijos | E42: PY3(t)/PY3(t–1) = | F42: 1.023 | I42: =CONCATENATE("Winter ",FirstYear+7," EC projections") -> Winter 2017 EC projections | K42: PY3(t)/PY3(t–1) = | L42: 1.023
C43: =CONCATENATE(FirstYear+7," m. pavasario EK projekcijos") -> 2017 m. pavasario EK projekcijos | E43: PY4(t)/PY4(t–1) = | F43: 1.025 | I43: =CONCATENATE("Spring ",FirstYear+7," EC projections") -> Spring 2017 EC projections | K43: PY4(t)/PY4(t–1) = | L43: 1.025
C44: =CONCATENATE(FirstYear+6,"K3–",FirstYear+7,"K2") -> 2016K3–2017K2 | E44: ΔYN(t–1) = | F44: 5.861694892 | G44: 5.818784847 | I44: =CONCATENATE(FirstYear+6,"K3–",FirstYear+7,"K2") -> 2016K3–2017K2 | K44: ΔYN(t–1) = | L44: 5.861694892 | M44: =G44 -> 5.818784847
E45: PA(t) = | F45: ='2. Macro'!O20 -> 1.626372119 | G45: ='2. Macro'!O19 -> 2.352578706 | K45: OG(t) = | L45: 1.626372119 | M45: =G45 -> 2.352578706
E46: ΔSVKI(t) = | F46: ='2. Macro'!O29 -> 2.7 | K46: ΔHICP(t) = | L46: 2.7
E47: Šaltiniai: | K47: Sources:
E48: Finansų ministerija | F48: FM | K48: Ministry of Finance | L48: MoF
E49: Fiskalinė institucija | F49: IFI | K49: Independent Fiscal Institution | L49: IFI
E50: Europos Komisija | F50: EK | K50: European Commission | L50: EC
D51: A1 | E51: E1 | F51: =(L6)*1 -> 0 | G51: =(M6)*1 -> 0 | H51: =IF(F51=1,$D51,"") ->  | J51: =IF(F51=1,$E51,"") -> 
D52: A2 | E52: E2 | F52: =(L8)*1 -> 1 | G52: =(M8)*1 -> 0 | H52: A2 | J52: E2
D53: A3 | E53: E3 | F53: =(L12)*1 -> 0 | G53: =(M12)*1 -> 0
D54: A4 | E54: E4 | F54: =(L14) -> Not applied | G54: =(M14) -> Not applied
D55: A5 | E55: E5 | F55: =(L15)*1 -> 0 | G55: =(M15)*1 -> 0
F56: =SUM(F51:F55) -> 1 | G56: =SUM(G51:G55) -> 0

Sheet 6. GGbudgets
B1: ↖ atgal į turinį | G1: ↖ back to content
A2: =Kalba -> LT
B3: 6 lentelė. VS priskiriamų biudžetų taisyklės | G3: Table 6. Rules for the budgets attributable to GG sector
B4: Nr. | C4: Taisyklė | D4: Formulė | E4: Išvada | G4: No. | H4: Rule | I4: Formula | J4: Conclusion
C5: Institucija, kurios projekcijų pagrindu atliekama analizė | E5: FM | F5: IFI | H5: Institution, projections of which are used for the analysis | J5: MoF | K5: IFI
B6: T3 | C6: Nuo 2018 m. sausio 1 d. kiekvienas j-asis vietos valdžios sektoriui priskiriamas biudžetas, kurio asignavimai viršija 0,3 procentą praėjusių metų BVP to meto kainomis, ir PSDF biudžetas turi būti planuojamas, tvirtinamas, keičiamas ir vykdomas taip, kad, sprendžiant pagal to biudžeto struktūrinį balanso rodiklį, apskaičiuotą kaupiamuoju principu, jis būtų perteklinis arba subalansuotas | D6: t > 2018 | E6: =IF(J6,"Tiesa","Netiesa") -> Netiesa | G6: R3 | H6: From 1 January 2018 each j-th budget attributable to local government sector, planned appropriations of which exceeds 0.3 % of GDP in the preceding year at current prices, and CHIF budget must be planned, approved, amended and implemented to be in surplus or balanced when judged by its structural balance indicator calculated on accrual basis | I6: t > 2018 | J6: =IF(E19>2018,TRUE,FALSE) -> FALSE
D7: SBj(t) ≥ 0, ꓯj ir SBPSDF(t) ≥ 0 | E7: Šiuo metu negalima patikrinti, nes nėra duomenų apie savivaldybių, kurių asignavimai viršija 0,3 proc. BVP, planuojamus pajamas ir asignavimus | F7: =E7 -> Šiuo metu negalima patikrinti, nes nėra duomenų apie savivaldybių, kurių asignavimai viršija 0,3 proc. BVP, planuojamus pajamas ir asignavimus | I7: SBj(t) ≥ 0, ꓯj and SBCHIF ≥ 0 | J7: Currently not verified, since no data on local governments appropr. of which exceed 0.3% of GDP, planned appropr. and revenues | K7: =J7 -> Currently not verified, since no data on local governments appropr. of which exceed 0.3% of GDP, planned appropr. and revenues
B8: T4 | C8: Nuo 2016 m. sausio 1 d. Lietuvos Respublikos atitinkamų metų VSDF biudžetas planuojamas, tvirtinamas, keičiamas ir vykdomas taip, kad jo struktūrinis deficitas, apskaičiuotas kaupiamuoju principu, galėtų didėti t metais, kuriems pagal Vyriausybės arba jos įgaliotos institucijos viešai paskelbtą ekonominės raidos scenarijų, dėl kurio tvirtinimo kontrolės institucija paskelbė savo išvadą, numatomas neigiamas produkcijos atotrūkis nuo potencialo | D8: t > 2016 | E8: =IF(J8,"Tiesa","Netiesa") -> Tiesa | G8: R4 | H8: From 1 January 2016 budget of the SSIF of the Republic of Lithuania for a year t shall be planned, approved, amended and implemented in such a way that its structural deficit calculated on accrual basis could increase only in the year when a negative output gap is projected according to the economic development scenario which is made public by the Government of the Republic of Lithuania or its authorised institutions and in regard of which the monitoring authority published its conclusion | I8: t > 2016 | J8: =IF(E19>2016,TRUE,FALSE) -> TRUE
D9: AP(t) < 0 | E9: =IF(J9,"Tiesa","Netiesa") -> Netiesa | F9: =IF(K9,"Tiesa","Netiesa") -> Netiesa | I9: OG(t) < 0 | J9: =IF(J20+eps<0,TRUE,FALSE) -> FALSE | K9: =IF(K20+eps<0,TRUE,FALSE) -> FALSE
E10: =CONCATENATE(TEXT(ROUND(J20,1),"0,0;–0,0"),IF(J20<0," < "," ≥ "),FIXED(0,1)) -> 1,6 ≥ 0,0 | F10: =CONCATENATE(TEXT(ROUND(K20,1),"0,0;–0,0"),IF(K20<0," < "," ≥ "),FIXED(0,1)) -> 2,4 ≥ 0,0 | J10: =CONCATENATE(TEXT(ROUND(J20,1),"0.0;–0.0"),IF(J20<0," < "," ≥ "),FIXED(0,1)) -> 0.2 ≥ 0,0 | K10: =CONCATENATE(TEXT(ROUND(K20,1),"0.0;–0.0"),IF(K20<0," < "," ≥ "),FIXED(0,1)) -> 0.2 ≥ 0,0
D11: AP(t) ≥ 0 ir SBVSDF(t) ≥ SBVSDF(t–1) | E11: =IF(J11,"Tiesa","Netiesa") -> Tiesa | F11: =IF(K11,"Tiesa","Netiesa") -> Tiesa | I11: OG(t) ≥ 0 and SBSSIF(t) ≥ SBSSIF(t–1) | J11: =IF((J20>=0)*(J21>=J22),TRUE,FALSE) -> TRUE | K11: =IF((K20>=0)*(K21+eps>=K22),TRUE,FALSE) -> TRUE
E12: =CONCATENATE(TEXT(ROUND(E20,1),"0,0;–0,0"),IF(J11," ≥ "," < "),FIXED(0,1), " ir ", TEXT(ROUND(E21,1),"0,0;–0,0"),IF(E21>=E22," ≥ "," < "), TEXT(ROUND(E22,1),"0,0;–0,0")) -> 1,6 ≥ 0,0 ir 0,3 ≥ 0,2 | F12: =CONCATENATE(TEXT(ROUND(F20,1),"0,0;–0,0"),IF(K11," ≥ "," < "),FIXED(0,1), " ir ", TEXT(ROUND(F21,1),"0,0;–0,0"),IF(F21+eps>=F22," ≥ "," < "), TEXT(ROUND(F22,1),"0,0;–0,0")) -> 2,4 ≥ 0,0 ir 0,3 ≥ 0,2 | J12: =CONCATENATE(TEXT(ROUND(J20,1),"0.0;–0.0"),IF(J11," ≥ "," < "),FIXED(0,1), " and ", TEXT(ROUND(J21,1),"0.0;–0.0"),IF(J21>=J22," ≥ "," < "), TEXT(ROUND(J22,1),"0.0;–0.0")) -> 0.2 ≥ 0,0 and 0.0 ≥ 0.0 | K12: =CONCATENATE(TEXT(ROUND(K20,1),"0.0;–0.0"),IF(K11," ≥ "," < "),FIXED(0,1), " and ", TEXT(ROUND(K21,1),"0.0;–0.0"),IF(K21+eps>=K22," ≥ "," < "), TEXT(ROUND(K22,1),"0.0;–0.0")) -> 0.2 ≥ 0,0 and 0.0 ≥ 0.0
C13: Taisyklė planuojamam VSDF struktūriniam biudžetui | E13: =IF(OR(J9,J11),"Galioja","Negalioja") -> Galioja | F13: =IF(OR(K9,K11),"Galioja","Negalioja") -> Galioja | H13: Rule for SSIF structural budget | J13: =IF(OR(J9:J11),"Valid","Invalid") -> Valid | K13: =IF(OR(K9:K11),"Valid","Invalid") -> Valid
B14: T5 | C14: Nuo 2016 m. sausio 1 d. kiekvienas j-asis vietos valdžios sektoriui priskiriamas biudžetas, kurio asignavimai neviršija 0,3 procento praėjusių metų BVP to meto kainomis, turi būti planuojamas, tvirtinamas, keičiamas ir vykdomas taip, kad to biudžeto asignavimai neviršytų jo pajamų, išskyrus metus, kuriais pagal Vyriausybės arba jos įgaliotos institucijos viešai paskelbtą ekonominės raidos scenarijų, dėl kurio tvirtinimo kontrolės institucija paskelbė savo išvadą, numatomas neigiamas produkcijos atotrūkis nuo potencialo. Pastaruoju atveju asignavimai negali viršyti pajamų daugiau kaip 1,5 procento | D14: t > 2016 | E14: =IF(J14,"Tiesa","Netiesa") -> Tiesa | G14: R5 | H14: From 1 January 2016 each j-th budget attributable to local government sector, planned appropriations of which does not exceed 0.3 % of GDP in the preceding year at current prices, shall be planned, approved, amended and implemented in such a way that the appropriations of the budget would not exceed its revenue, with the exception of the year when a negative output gap is projected according to the economic development scenario which is made public by the Government or its authorised institution and in regard to which the monitoring authority published its conclusion. In the latter case, the appropriations may not exceed revenue by more than 1.5 % | I14: t>2016 | J14: =IF(E19>2016,TRUE,FALSE) -> TRUE
D15: AP(t) ≥ 0 ir VIj(t)/VPj(t) ≤ 1 | E15: Šiuo metu negalima patikrinti, nes nėra duomenų apie savivaldybių, kurių asignavimai neviršija 0,3 proc. BVP, planuojamus pajamas ir asignavimus. | F15: =E15 -> Šiuo metu negalima patikrinti, nes nėra duomenų apie savivaldybių, kurių asignavimai neviršija 0,3 proc. BVP, planuojamus pajamas ir asignavimus. | I15: OG(t) ≥ 0 and TEj(t)/TRj(t) ≤ 1 | J15: Currently not verified, since no data on local governments appropr. of which does not exceed 0.3% of GDP, planned appropr. and revenues | K15: =J15 -> Currently not verified, since no data on local governments appropr. of which does not exceed 0.3% of GDP, planned appropr. and revenues
D16: AP(t) < 0 ir VIj(t)/VPj(t) ≤ 1,015 | I16: OG(t) < 0 and TEj(t)/TRj(t) ≤ 1,015
C17: Taisyklė planuojamiems vietos valdžios sektoriaus (j) asignavimams, kurie neviršija 0,3 proc. BVP | H17: Rule for planned local governments (j) appropriations of which does not exceed 0.3 % of GDP
C18: Šaltinis: KĮ 4 straipsnis | H18: Source: CL Article 4
D19: t = | E19: ='2. Macro'!G5+8 -> 2018 | I19: t = | J19: =E19 -> 2018
D20: PA(t) = | E20: ='2. Macro'!O20 -> 1.626372119 | F20: ='2. Macro'!O19 -> 2.352578706 | I20: OG(t) = | J20: =E20 -> 1.626372119 | K20: =F20 -> 2.352578706
D21: SBVSDF(t) = | E21: ='3. GGbudget'!G18 -> 0.329903224 | F21: ='3. GGbudget'!K18 -> 0.2540146357 | I21: SBSSIF(t) = | J21: =E21 -> 0.329903224 | K21: =F21 -> 0.2540146357
D22: SBVSDF(t–1) = | E22: ='3. GGbudget'!F18 -> 0.1597040001 | F22: ='3. GGbudget'!J18 -> 0.1741164354 | I22: SBSSIF(t–1) = | J22: =E22 -> 0.1597040001 | K22: =F22 -> 0.1741164354
D23: Šaltiniai: | I23: Sources:
D24: Finansų ministerija | E24: FM | I24: Ministry of Finance | J24: MoF
D25: Fiskalinė institucija | E25: IFI | I25: Independent Fiscal Institution | J25: IFI
